[Event "Championnat d'Europe de Blitz"]
[Date "2024.12.09"]
[White "Grigoriants, Sergey"]
[Black "Pultinevicius, Paulius"]
[WhiteElo "2542"]
[BlackElo "2579"]
[Round "7.14"]
[Result "0-1"]
[TimeControl "180+2"]

1. e4 {[%emt 00:00:02] [%clk 00:03:01]} c5 {[%emt 00:00:01] [%clk 00:03:04]} 2.
Nf3 {[%emt 00:00:03] [%clk 00:03:01]} e6 {[%clk 00:03:05]} 3. c3 {[%emt
00:00:10] [%clk 00:02:53]} Nf6 {[%emt 00:00:04] [%clk 00:03:03]} 4. Bd3 {[%emt
00:00:01] [%clk 00:02:54]} d5 {[%emt 00:00:02] [%clk 00:03:03]} 5. e5 {[%emt
00:00:02] [%clk 00:02:54]} Nfd7 {[%emt 00:00:02] [%clk 00:03:03]} 6. Bc2 {[%emt
00:00:02] [%clk 00:02:54]} c4 {[%emt 00:00:02] [%clk 00:03:03]} 7. d4 {[%emt
00:00:15] [%clk 00:02:42]} cxd3 {[%emt 00:00:01] [%clk 00:03:03]} 8. Bxd3 {[%emt
00:00:02] [%clk 00:02:42]} Qc7 {[%emt 00:00:05] [%clk 00:03:00]} 9. Bf4 {[%emt
00:00:13] [%clk 00:02:31]} Nc6 {[%emt 00:00:02] [%clk 00:02:59]} 10. Qe2 {[%emt
00:00:09] [%clk 00:02:24]} Nc5 {[%emt 00:00:49] [%clk 00:02:13]} 11. O-O {[%emt
00:00:25] [%clk 00:02:01]} Nxd3 {[%emt 00:00:01] [%clk 00:02:14]} 12. Qxd3
{[%emt 00:00:02] [%clk 00:02:02]} h6 {[%emt 00:00:01] [%clk 00:02:15]} 13. Re1
{[%emt 00:00:08] [%clk 00:01:55]} Bd7 {[%emt 00:00:05] [%clk 00:02:12]} 14. a4
{[%emt 00:00:19] [%clk 00:01:38]} Be7 {[%emt 00:00:07] [%clk 00:02:07]} 15. Na3
{[%emt 00:00:17] [%clk 00:01:23]} a6 {[%emt 00:00:02] [%clk 00:02:08]} 16. Nc2
{[%emt 00:00:01] [%clk 00:01:23]} g5 {[%emt 00:00:16] [%clk 00:01:54]} 17. Bg3
{[%emt 00:00:09] [%clk 00:01:16]} h5 {[%emt 00:00:01] [%clk 00:01:55]} 18. h3
{[%emt 00:00:02] [%clk 00:01:16]} g4 {[%emt 00:00:05] [%clk 00:01:52]} 19. hxg4
{[%emt 00:00:02] [%clk 00:01:16]} hxg4 {[%emt 00:00:02] [%clk 00:01:53]} 20. Nh2
{[%emt 00:00:01] [%clk 00:01:16]} O-O-O {[%emt 00:00:26] [%clk 00:01:30]} 21. b4
{[%emt 00:00:02] [%clk 00:01:15]} Rh5 {[%emt 00:00:48] [%clk 00:00:44]} 22. b5
{[%emt 00:00:11] [%clk 00:01:06]} Nb8 {[%emt 00:00:19] [%clk 00:00:27]} 23. Ne3
{[%emt 00:00:19] [%clk 00:00:49]} Bc5 {[%emt 00:00:15] [%clk 00:00:14]} 24.
Nexg4 {[%emt 00:00:19] [%clk 00:00:32]} axb5 {[%emt 00:00:01] [%clk 00:00:15]}
25. axb5 {[%emt 00:00:01] [%clk 00:00:33]} Qb6 {[%clk 00:00:17]} 26. c4 {[%emt
00:00:14] [%clk 00:00:20]} dxc4 {[%emt 00:00:10] [%clk 00:00:09]} 27. Qxc4
{[%clk 00:00:21]} Bxb5 {[%clk 00:00:10]} 28. Qc2 {[%emt 00:00:04] [%clk
00:00:19]} Bc6 {[%emt 00:00:02] [%clk 00:00:10]} 29. Nf6 {[%emt 00:00:04] [%clk
00:00:17]} Rf5 {[%clk 00:00:11]} 30. Ne4 {[%emt 00:00:03] [%clk 00:00:17]} Be7
{[%emt 00:00:09] [%clk 00:00:04]} 31. Nd6+ {[%emt 00:00:03] [%clk 00:00:15]}
Bxd6 {[%emt 00:00:02] [%clk 00:00:05]} 32. exd6 {[%clk 00:00:16]} Rd5 {[%emt
00:00:03] [%clk 00:00:04]} 33. Ra8 {[%emt 00:00:04] [%clk 00:00:14]} Kd7 {[%emt
00:00:03] [%clk 00:00:03]} 34. Ng4 {[%clk 00:00:15]} Rf5 {[%emt 00:00:01] [%clk
00:00:04]} 35. Ne5+ {[%emt 00:00:02] [%clk 00:00:15]} Rxe5 {[%emt 00:00:02]
[%clk 00:00:04]} 36. Bxe5 {[%clk 00:00:15]} Rg8 {[%clk 00:00:06]} 37. Re4 {[%emt
00:00:09] [%clk 00:00:09]} Qb5 {[%emt 00:00:03] [%clk 00:00:05]} 38. Ra1 {[%emt
00:00:03] [%clk 00:00:08]} Rxg2+ {[%emt 00:00:02] [%clk 00:00:04]} 39. Kxg2
{[%emt 00:00:02] [%clk 00:00:08]} Qxe5 {[%clk 00:00:06]} 40. Rae1 {[%emt
00:00:04] [%clk 00:00:06]} Qg7+ {[%emt 00:00:05] [%clk 00:00:03]} 41. Kf1 {[%emt
00:00:03] [%clk 00:00:06]} f5 {[%emt 00:00:01] [%clk 00:00:04]} 42. Rxe6 {[%emt
00:00:04] [%clk 00:00:03]} Qg2+ {[%emt 00:00:02] [%clk 00:00:04]} 43. Ke2 {[%clk
00:00:05]} Kxe6 {[%clk 00:00:05]} 44. Qc4+ {[%emt 00:00:02] [%clk 00:00:05]}
Kxd6 {[%emt 00:00:02] [%clk 00:00:04]} 45. Rd1+ {[%clk 00:00:06]} Bd5 {[%emt
00:00:02] [%clk 00:00:04]} 46. Qf4+ {[%emt 00:00:02] [%clk 00:00:06]} Ke6 {[%emt
00:00:01] [%clk 00:00:05]} 47. Re1 {[%emt 00:00:02] [%clk 00:00:06]} Nc6 {[%emt
00:00:03] [%clk 00:00:04]} 48. Kd2+ {[%clk 00:00:07]} Be4 {[%emt 00:00:02] [%clk
00:00:04]} 49. Qh6+ {[%emt 00:00:05] [%clk 00:00:04]} Kd5 {[%emt 00:00:02] [%clk
00:00:04]} 50. Qf4 {[%emt 00:00:03] [%clk 00:00:03]} Nd4 {[%emt 00:00:03] [%clk
00:00:04]} 51. Ra1 {[%emt 00:00:02] [%clk 00:00:03]} Nb3+ {[%clk 00:00:05]} 52.
Kc3 {[%emt 00:00:01] [%clk 00:00:04]} Nxa1 {[%clk 00:00:05]} 0-1

[Site "Europe Echecs"]

[Event "Championnat d'Europe de Blitz"]
[Date "2024.12.09"]
[White "Sargissian, Gabriel"]
[Black "Baskin, Robert"]
[WhiteElo "2628"]
[BlackElo "2442"]
[Round "7.15"]
[Result "1-0"]
[TimeControl "180+2"]

1. Nf3 {[%emt 00:00:02] [%clk 00:03:01]} Nf6 {[%emt 00:00:04] [%clk 00:03:03]}
2. g3 {[%clk 00:03:02]} d5 {[%emt 00:00:10] [%clk 00:02:55]} 3. Bg2 {[%emt
00:00:02] [%clk 00:03:02]} c5 {[%emt 00:00:03] [%clk 00:02:54]} 4. O-O {[%emt
00:00:05] [%clk 00:02:59]} g6 {[%emt 00:00:17] [%clk 00:02:39]} 5. d4 {[%emt
00:00:06] [%clk 00:02:55]} Bg7 {[%emt 00:00:18] [%clk 00:02:24]} 6. dxc5 {[%emt
00:00:17] [%clk 00:02:40]} Na6 {[%emt 00:00:02] [%clk 00:02:24]} 7. c4 {[%emt
00:00:08] [%clk 00:02:33]} Nxc5 {[%emt 00:00:13] [%clk 00:02:14]} 8. cxd5 {[%emt
00:00:02] [%clk 00:02:33]} Nxd5 {[%emt 00:00:13] [%clk 00:02:02]} 9. Ng5 {[%emt
00:00:08] [%clk 00:02:26]} e6 {[%emt 00:00:20] [%clk 00:01:45]} 10. e4 {[%emt
00:00:05] [%clk 00:02:23]} Nb4 {[%emt 00:00:21] [%clk 00:01:26]} 11. Qxd8+
{[%emt 00:00:03] [%clk 00:02:22]} Kxd8 {[%emt 00:00:01] [%clk 00:01:28]} 12.
Nxf7+ {[%emt 00:00:19] [%clk 00:02:05]} Ke7 {[%emt 00:00:13] [%clk 00:01:17]}
13. Nxh8 {[%emt 00:00:31] [%clk 00:01:35]} Nc2 {[%emt 00:00:03] [%clk 00:01:16]}
14. Bg5+ {[%emt 00:00:03] [%clk 00:01:34]} Ke8 {[%emt 00:00:22] [%clk 00:00:56]}
15. Nc3 {[%emt 00:00:16] [%clk 00:01:20]} Nxa1 {[%emt 00:00:03] [%clk 00:00:56]}
16. Nxg6 {[%emt 00:00:17] [%clk 00:01:04]} Nc2 {[%emt 00:00:12] [%clk 00:00:46]}
17. Nf4 {[%emt 00:00:09] [%clk 00:00:57]} h6 {[%emt 00:00:09] [%clk 00:00:39]}
18. Bh4 {[%emt 00:00:04] [%clk 00:00:55]} Bd7 {[%emt 00:00:01] [%clk 00:00:40]}
19. Nh5 {[%emt 00:00:10] [%clk 00:00:47]} Bxc3 {[%emt 00:00:16] [%clk 00:00:26]}
20. bxc3 {[%emt 00:00:02] [%clk 00:00:48]} Bb5 {[%clk 00:00:27]} 21. Rd1 {[%emt
00:00:04] [%clk 00:00:46]} Na4 {[%emt 00:00:08] [%clk 00:00:22]} 22. Nf6+ {[%emt
00:00:18] [%clk 00:00:29]} Kf7 {[%emt 00:00:02] [%clk 00:00:22]} 23. Rd2 {[%emt
00:00:05] [%clk 00:00:26]} Ne1 {[%emt 00:00:07] [%clk 00:00:18]} 24. Ng4 {[%emt
00:00:03] [%clk 00:00:24]} Nxg2 {[%emt 00:00:06] [%clk 00:00:14]} 25. Kxg2
{[%emt 00:00:01] [%clk 00:00:25]} Nxc3 {[%emt 00:00:05] [%clk 00:00:11]} 26.
Ne5+ {[%emt 00:00:01] [%clk 00:00:26]} Ke8 {[%emt 00:00:03] [%clk 00:00:10]} 27.
f3 {[%emt 00:00:04] [%clk 00:00:25]} Rc8 {[%emt 00:00:03] [%clk 00:00:09]} 28.
Bf6 {[%emt 00:00:03] [%clk 00:00:23]} Ne2 {[%emt 00:00:07] [%clk 00:00:04]} 29.
a4 {[%emt 00:00:07] [%clk 00:00:19]} Ba6 {[%emt 00:00:02] [%clk 00:00:04]} 30.
Rd7 {[%emt 00:00:03] [%clk 00:00:18]} Nc3 {[%emt 00:00:05] [%clk 00:00:00]} 1-0

[Site "Europe Echecs"]

[Event "Championnat d'Europe de Blitz"]
[Date "2024.12.09"]
[White "Papasimakopoulos, Alexandros"]
[Black "Alonso Rosell, Alvar"]
[WhiteElo "2379"]
[BlackElo "2532"]
[Round "7.16"]
[Result "1-0"]
[TimeControl "180+2"]

1. d4 {[%clk 00:03:03]} Nf6 {[%emt 00:00:01] [%clk 00:03:03]} 2. c4 {[%clk
00:03:04]} c5 {[%clk 00:03:05]} 3. d5 {[%emt 00:00:03] [%clk 00:03:06]} b5
{[%clk 00:03:06]} 4. Nf3 {[%clk 00:03:07]} g6 {[%emt 00:00:01] [%clk 00:03:06]}
5. cxb5 {[%emt 00:00:02] [%clk 00:03:07]} a6 {[%emt 00:00:02] [%clk 00:03:06]}
6. e3 {[%clk 00:03:08]} Bg7 {[%emt 00:00:06] [%clk 00:03:03]} 7. Nc3 {[%clk
00:03:09]} O-O {[%emt 00:00:14] [%clk 00:02:51]} 8. a4 {[%clk 00:03:11]} axb5
{[%emt 00:00:20] [%clk 00:02:33]} 9. Bxb5 {[%emt 00:00:02] [%clk 00:03:11]} Ba6
{[%emt 00:00:01] [%clk 00:02:33]} 10. Ra3 {[%emt 00:00:09] [%clk 00:03:05]} Bxb5
{[%emt 00:00:15] [%clk 00:02:20]} 11. Nxb5 {[%emt 00:00:13] [%clk 00:02:54]} d6
{[%emt 00:00:10] [%clk 00:02:12]} 12. Nc3 {[%emt 00:00:29] [%clk 00:02:26]} Na6
{[%emt 00:00:08] [%clk 00:02:06]} 13. O-O {[%emt 00:00:03] [%clk 00:02:25]} Nb4
{[%emt 00:00:04] [%clk 00:02:05]} 14. e4 {[%emt 00:00:03] [%clk 00:02:24]} Qb6
{[%emt 00:00:12] [%clk 00:01:55]} 15. Re1 {[%emt 00:00:21] [%clk 00:02:04]} c4
{[%emt 00:00:06] [%clk 00:01:51]} 16. Be3 {[%emt 00:00:22] [%clk 00:01:44]} Qb7
{[%emt 00:00:04] [%clk 00:01:49]} 17. Re2 {[%emt 00:00:04] [%clk 00:01:42]} Nd3
{[%emt 00:00:07] [%clk 00:01:44]} 18. Ra2 {[%emt 00:00:10] [%clk 00:01:35]} Ng4
{[%emt 00:00:05] [%clk 00:01:40]} 19. Bd4 {[%emt 00:00:01] [%clk 00:01:36]} Bxd4
{[%clk 00:01:31]} 20. Nxd4 {[%emt 00:00:12] [%clk 00:01:37]} Qb6 {[%emt
00:00:02] [%clk 00:01:31]} 21. Ncb5 {[%emt 00:00:19] [%clk 00:01:20]} e5 {[%emt
00:00:01] [%clk 00:01:32]} 22. h3 {[%emt 00:00:14] [%clk 00:01:07]} Ngxf2 {[%emt
00:00:10] [%clk 00:01:25]} 23. Rxf2 {[%emt 00:00:02] [%clk 00:01:07]} Nxf2
{[%emt 00:00:02] [%clk 00:01:25]} 24. Kxf2 {[%emt 00:00:02] [%clk 00:01:07]}
exd4 {[%emt 00:00:14] [%clk 00:01:13]} 25. Qxd4 {[%emt 00:00:02] [%clk
00:01:08]} Qxd4+ {[%emt 00:00:10] [%clk 00:01:04]} 26. Nxd4 {[%emt 00:00:02]
[%clk 00:01:09]} Rfb8 {[%emt 00:00:01] [%clk 00:01:05]} 27. Ke3 {[%emt 00:00:18]
[%clk 00:00:53]} Kf8 {[%emt 00:00:03] [%clk 00:01:03]} 28. a5 {[%emt 00:00:02]
[%clk 00:00:53]} Ke8 {[%emt 00:00:12] [%clk 00:00:53]} 29. Nc6 {[%emt 00:00:02]
[%clk 00:00:54]} Rb5 {[%emt 00:00:05] [%clk 00:00:49]} 30. Kd4 {[%emt 00:00:11]
[%clk 00:00:45]} Rc5 {[%emt 00:00:07] [%clk 00:00:44]} 31. a6 {[%emt 00:00:01]
[%clk 00:00:46]} Kd7 {[%emt 00:00:12] [%clk 00:00:34]} 32. a7 {[%emt 00:00:01]
[%clk 00:00:48]} Kc7 {[%emt 00:00:13] [%clk 00:00:23]} 33. Ra4 {[%emt 00:00:09]
[%clk 00:00:40]} Rb5 {[%emt 00:00:11] [%clk 00:00:14]} 34. Ra2 {[%emt 00:00:05]
[%clk 00:00:38]} Rc5 {[%clk 00:00:16]} 35. g4 {[%emt 00:00:10] [%clk 00:00:30]}
Kb7 {[%emt 00:00:02] [%clk 00:00:15]} 36. Ra4 {[%emt 00:00:05] [%clk 00:00:27]}
Rb5 {[%emt 00:00:04] [%clk 00:00:13]} 37. Ra2 {[%emt 00:00:18] [%clk 00:00:12]}
Rc5 {[%emt 00:00:01] [%clk 00:00:14]} 38. g5 {[%emt 00:00:05] [%clk 00:00:09]}
Re8 {[%emt 00:00:04] [%clk 00:00:12]} 39. h4 {[%emt 00:00:02] [%clk 00:00:09]}
Ka8 {[%emt 00:00:02] [%clk 00:00:11]} 40. e5 {[%emt 00:00:04] [%clk 00:00:07]}
Rxc6 {[%emt 00:00:02] [%clk 00:00:12]} 41. dxc6 {[%emt 00:00:02] [%clk
00:00:07]} Rxe5 {[%clk 00:00:13]} 42. Kxc4 {[%emt 00:00:05] [%clk 00:00:05]}
Rc5+ {[%emt 00:00:01] [%clk 00:00:14]} 43. Kd4 {[%emt 00:00:01] [%clk 00:00:05]}
Rxc6 {[%emt 00:00:01] [%clk 00:00:15]} 44. b4 {[%emt 00:00:01] [%clk 00:00:07]}
Rb6 {[%emt 00:00:06] [%clk 00:00:11]} 45. Kc4 {[%clk 00:00:08]} Rb7 {[%emt
00:00:06] [%clk 00:00:07]} 46. b5 {[%emt 00:00:01] [%clk 00:00:09]} Rc7+ {[%emt
00:00:02] [%clk 00:00:07]} 47. Kd5 {[%emt 00:00:01] [%clk 00:00:10]} Rc5+ {[%emt
00:00:02] [%clk 00:00:07]} 48. Kxd6 {[%clk 00:00:11]} Rxb5 {[%clk 00:00:09]} 49.
Ra4 {[%emt 00:00:04] [%clk 00:00:10]} Rf5 {[%emt 00:00:04] [%clk 00:00:06]} 50.
Ke7 {[%clk 00:00:11]} Rf1 {[%emt 00:00:04] [%clk 00:00:05]} 51. Kf8 {[%emt
00:00:01] [%clk 00:00:11]} f5 {[%emt 00:00:02] [%clk 00:00:05]} 52. Kg7 {[%emt
00:00:03] [%clk 00:00:11]} f4 {[%emt 00:00:01] [%clk 00:00:06]} 53. Kxh7 {[%emt
00:00:03] [%clk 00:00:10]} f3 {[%emt 00:00:01] [%clk 00:00:06]} 54. Kxg6 {[%emt
00:00:02] [%clk 00:00:10]} Rh1 {[%emt 00:00:03] [%clk 00:00:05]} 55. Rf4 {[%emt
00:00:02] [%clk 00:00:11]} Rh3 {[%emt 00:00:02] [%clk 00:00:05]} 56. h5 {[%clk
00:00:12]} Kxa7 {[%clk 00:00:07]} 57. h6 {[%clk 00:00:13]} Kb6 {[%emt 00:00:01]}
58. Kg7 {[%clk 00:00:14]} Kc6 {[%clk 00:00:10]} 59. h7 {[%clk 00:00:15]} Kd6
{[%emt 00:00:01] [%clk 00:00:11]} 60. Rxf3 {[%emt 00:00:04] [%clk 00:00:13]} 1-0

[Site "Europe Echecs"]

[Event "Championnat d'Europe de Blitz"]
[Date "2024.12.09"]
[White "Pantsulaia, Levan"]
[Black "Arnaudov, G. Petar"]
[WhiteElo "2522"]
[BlackElo "2401"]
[Round "7.17"]
[Result "1-0"]
[TimeControl "180+2"]

1. Nf3 {[%clk 00:03:03]} Nf6 {[%emt 00:00:02] [%clk 00:03:02]} 2. g3 {[%clk
00:03:04]} d5 {[%emt 00:00:02] [%clk 00:03:03]} 3. Bg2 {[%emt 00:00:03] [%clk
00:03:05]} e6 {[%clk 00:03:04]} 4. O-O {[%clk 00:03:06]} Be7 {[%emt 00:00:01]
[%clk 00:03:05]} 5. c4 {[%emt 00:00:02] [%clk 00:03:06]} O-O {[%emt 00:00:02]
[%clk 00:03:04]} 6. b3 {[%emt 00:00:01] [%clk 00:03:07]} a5 {[%clk 00:03:05]} 7.
Nc3 {[%emt 00:00:02] [%clk 00:03:08]} c6 {[%emt 00:00:01] [%clk 00:03:06]} 8.
Bb2 {[%emt 00:00:04] [%clk 00:03:06]} b6 {[%emt 00:00:08] [%clk 00:03:00]} 9.
Qc2 {[%emt 00:00:02] [%clk 00:03:05]} Bb7 {[%emt 00:00:20] [%clk 00:02:42]} 10.
d3 {[%emt 00:00:10] [%clk 00:02:58]} d4 {[%emt 00:00:23] [%clk 00:02:21]} 11.
Na4 {[%emt 00:00:57] [%clk 00:02:03]} c5 {[%emt 00:01:02] [%clk 00:01:20]} 12.
e3 {[%emt 00:00:06] [%clk 00:01:59]} Nc6 {[%emt 00:00:41] [%clk 00:00:42]} 13.
exd4 {[%emt 00:00:09] [%clk 00:01:52]} cxd4 {[%emt 00:00:01] [%clk 00:00:43]}
14. a3 {[%emt 00:00:27] [%clk 00:01:27]} Ra7 {[%emt 00:00:07] [%clk 00:00:38]}
15. Rfe1 {[%emt 00:00:03] [%clk 00:01:25]} Ba8 {[%emt 00:00:09] [%clk 00:00:33]}
16. Qe2 {[%emt 00:00:25] [%clk 00:01:01]} Bc5 {[%emt 00:00:11] [%clk 00:00:24]}
17. Bc1 {[%emt 00:00:07] [%clk 00:00:56]} Nd7 {[%emt 00:00:08] [%clk 00:00:18]}
18. Bd2 {[%emt 00:00:26] [%clk 00:00:32]} Re8 {[%emt 00:00:03] [%clk 00:00:16]}
19. Reb1 {[%emt 00:00:02] [%clk 00:00:33]} e5 {[%emt 00:00:08] [%clk 00:00:11]}
20. b4 {[%emt 00:00:01] [%clk 00:00:33]} axb4 {[%emt 00:00:02] [%clk 00:00:11]}
21. axb4 {[%clk 00:00:35]} Bf8 {[%emt 00:00:02] [%clk 00:00:10]} 22. Ng5 {[%emt
00:00:10] [%clk 00:00:27]} h6 {[%emt 00:00:07] [%clk 00:00:05]} 23. Nxf7 {[%clk
00:00:28]} Kxf7 {[%emt 00:00:02] [%clk 00:00:06]} 24. Bd5+ {[%clk 00:00:29]} Ke7
{[%emt 00:00:06]} 25. Qf3 {[%clk 00:00:30]} Qc7 {[%emt 00:00:01] [%clk
00:00:04]} 26. b5 {[%emt 00:00:09] [%clk 00:00:23]} Na5 {[%clk 00:00:06]} 27. c5
{[%emt 00:00:18] [%clk 00:00:08]} Nxc5 {[%emt 00:00:02] [%clk 00:00:06]} 28.
Nxc5 {[%clk 00:00:08]} Bxd5 {[%emt 00:00:01] [%clk 00:00:07]} 29. Qxd5 {[%emt
00:00:01] [%clk 00:00:09]} Qxc5 {[%emt 00:00:02] [%clk 00:00:08]} 30. Bb4 {[%clk
00:00:10]} 1-0

[Site "Europe Echecs"]

[Event "Championnat d'Europe de Blitz"]
[Date "2024.12.09"]
[White "Peyrer, Konstantin"]
[Black "Mohr, Georg"]
[WhiteElo "2440"]
[BlackElo "2385"]
[Round "7.18"]
[Result "1-0"]
[TimeControl "180+2"]

1. Nf3 {[%emt 00:00:02] [%clk 00:03:02]} g6 {[%emt 00:00:02] [%clk 00:03:03]} 2.
g3 {[%emt 00:00:03] [%clk 00:03:02]} Bg7 {[%clk 00:03:03]} 3. Bg2 {[%clk
00:03:04]} Nf6 {[%emt 00:00:01] [%clk 00:03:04]} 4. c4 {[%emt 00:00:02] [%clk
00:03:04]} O-O {[%emt 00:00:02] [%clk 00:03:05]} 5. Nc3 {[%emt 00:00:01] [%clk
00:03:05]} c5 {[%emt 00:00:04] [%clk 00:03:02]} 6. O-O {[%emt 00:00:03] [%clk
00:03:04]} Nc6 {[%emt 00:00:01] [%clk 00:03:03]} 7. d4 {[%emt 00:00:01] [%clk
00:03:05]} cxd4 {[%emt 00:00:01] [%clk 00:03:03]} 8. Nxd4 {[%emt 00:00:01] [%clk
00:03:06]} a6 {[%emt 00:00:15] [%clk 00:02:51]} 9. c5 {[%emt 00:00:03] [%clk
00:03:05]} Nxd4 {[%emt 00:00:18] [%clk 00:02:34]} 10. Qxd4 {[%emt 00:00:02]
[%clk 00:03:05]} d6 {[%emt 00:00:08] [%clk 00:02:28]} 11. cxd6 {[%emt 00:00:06]
[%clk 00:03:02]} Ne8 {[%emt 00:00:06] [%clk 00:02:24]} 12. Qh4 {[%emt 00:00:01]
[%clk 00:03:02]} Nxd6 {[%emt 00:00:03] [%clk 00:02:24]} 13. Rd1 {[%emt 00:00:10]
[%clk 00:02:54]} Be6 {[%emt 00:00:15] [%clk 00:02:11]} 14. Bf4 {[%emt 00:00:26]
[%clk 00:02:29]} Qb6 {[%emt 00:00:20] [%clk 00:01:53]} 15. Qxe7 {[%emt 00:00:07]
[%clk 00:02:24]} Qxb2 {[%emt 00:00:15] [%clk 00:01:40]} 16. Bxd6 {[%emt
00:00:25] [%clk 00:02:01]} Qxc3 {[%emt 00:00:02] [%clk 00:01:41]} 17. Qxb7
{[%emt 00:00:05] [%clk 00:01:58]} Rfd8 {[%emt 00:00:30] [%clk 00:01:13]} 18. Bc7
{[%emt 00:00:39] [%clk 00:01:21]} Rdc8 {[%emt 00:00:20] [%clk 00:00:54]} 19. Bf4
{[%emt 00:00:06] [%clk 00:01:17]} Qxa1 {[%emt 00:00:04] [%clk 00:00:53]} 20.
Rxa1 {[%emt 00:00:01] [%clk 00:01:17]} Bxa1 {[%emt 00:00:01] [%clk 00:00:53]}
21. Bd5 {[%emt 00:00:04] [%clk 00:01:16]} Bxd5 {[%emt 00:00:05] [%clk 00:00:51]}
22. Qxd5 {[%emt 00:00:01] [%clk 00:01:17]} Bg7 {[%clk 00:00:52]} 23. h4 {[%emt
00:00:15] [%clk 00:01:04]} h5 {[%clk 00:00:53]} 24. e4 {[%emt 00:00:02] [%clk
00:01:03]} Ra7 {[%emt 00:00:03] [%clk 00:00:52]} 25. Qd3 {[%emt 00:00:10] [%clk
00:00:55]} a5 {[%emt 00:00:03] [%clk 00:00:52]} 26. Kg2 {[%emt 00:00:07] [%clk
00:00:49]} Kh7 {[%emt 00:00:09] [%clk 00:00:46]} 27. a4 {[%emt 00:00:07] [%clk
00:00:44]} Re7 {[%emt 00:00:08] [%clk 00:00:40]} 28. Bd2 {[%emt 00:00:02] [%clk
00:00:43]} Re5 {[%emt 00:00:04] [%clk 00:00:38]} 29. Qd7 {[%emt 00:00:11] [%clk
00:00:35]} Kg8 {[%emt 00:00:03] [%clk 00:00:37]} 30. Qxc8+ {[%emt 00:00:02]
[%clk 00:00:35]} 1-0

[Site "Europe Echecs"]